{"text_format":"1","workbook":"xlsx","n_sheets":3,"sheets":["Лист1","Лист2","Лист3"],"not_rendered":{"charts":0,"images":0,"macros":0,"external_links":0,"defined_names":0,"comments":0,"pivot_tables":0},"unopened":[],"bounds":{"document_bytes":16777216,"sheet_cells":100000,"rows_first":2000,"rows_last":500,"rows_between":2000,"halvings":0,"cell_chars":16384,"cell_head_chars":4096},"cells_cut":0,"cells_raw":0,"read":"whole","date_system":"1900"}

{"sheet":"Лист1","index":0,"n_rows":11,"n_cols":5,"rows_kept":11,"cut":false,"hidden":false,"merged":[]}
[]
[null,{"$f":"IF((D2<0),B2+1,\"\")","v":{"$error":"#VALUE!"}},{"$f":"B2+C1","v":{"$error":"#VALUE!"}},{"$f":"B2*14-C2","v":{"$error":"#VALUE!"}}]
[null,{"$f":"IF((D3<0),B3+1,\"\")","v":{"$error":"#NUM!"}},{"$f":"C2+B3","v":{"$error":"#VALUE!"}},{"$f":"B3*14-C3","v":{"$error":"#NUM!"}},"нужно удержать значения в стобце L в диапазоне от 0 до 15 и что бы это число можно было бы этот промежуток можно было бы варьировать"]
[null,{"$error":"#NUM!"},{"$f":"C3+B4","v":{"$error":"#VALUE!"}},{"$f":"B4*14-C4","v":{"$error":"#NUM!"}}]
[null,{"$error":"#NUM!"},{"$f":"C4+B5","v":{"$error":"#VALUE!"}},{"$error":"#NUM!"}]
[null,{"$error":"#NUM!"},{"$error":"#VALUE!"},{"$error":"#NUM!"}]
[null,{"$error":"#NUM!"},{"$error":"#VALUE!"},{"$error":"#NUM!"}]
[null,{"$error":"#NUM!"},{"$error":"#VALUE!"},{"$error":"#NUM!"}]
[null,{"$error":"#NUM!"},{"$error":"#VALUE!"},{"$error":"#NUM!"}]
[null,{"$error":"#NUM!"},{"$error":"#VALUE!"},{"$error":"#NUM!"}]
[null,{"$error":"#NUM!"},{"$error":"#VALUE!"},{"$error":"#NUM!"}]

{"sheet":"Лист2","index":1,"n_rows":0,"n_cols":0,"rows_kept":0,"cut":false,"hidden":false,"merged":[]}

{"sheet":"Лист3","index":2,"n_rows":0,"n_cols":0,"rows_kept":0,"cut":false,"hidden":false,"merged":[]}